[Event "Karel Janecek Open 2024"]
[Site "Prague"]
[Date "2024.03.06"]
[Round "8.6"]
[White "Xiang, Zeyu"]
[Black "Csonka, Balasz"]
[Result "1-0"]
[ECO "D33"]
[WhiteElo "2418"]
[BlackElo "2480"]
[Annotator "TA"]
[PlyCount "109"]
[EventDate "2024.02.22"]
[EventType "swiss"]
[EventCountry "CZE"]
[SourceTitle "playchess.com"]
[Source "ChessBase"]
[SourceQuality "1"]
[TimeControl "40/5400+30:1800+30"]

{[%evp 20,109,15,23,20,41,49,61,50,54,54,49,46,44,66,67,81,88,76,86,88,76,106,107,114,110,146,127,109,110,116,111,109,112,109,116,108,112,113,110,113,113,115,115,111,104,102,96,102,104,120,120,121,117,131,131,137,130,119,124,121,121,125,103,147,149,129,149,318,328,485,466,506,545,524,556,547,479,410,247,29961,29961,29961,29961,29966,29966,29967,29967,29975,29977,29975,29977]} 1. c4 {[%emt 0:00:04]} c5 {[%emt 0:00:15]} 2. Nf3 {[%emt 0:00:10]} Nc6 {[%emt 0:04:56]} 3. Nc3 {[%emt 0:00:07]} Nf6 {[%emt 0:00:17]} 4. g3 {[%emt 0:00:06]} e6 {[%emt 0:03:20]} 5. Bg2 {[%emt 0:00:13]} d5 {[%emt 0:00:11]} 6. cxd5 {[%emt 0:01:10]} exd5 {[%emt 0:00:08]} 7. d4 {[%emt 0:00:16]} cxd4 {[%emt 0:00:16]} 8. Nxd4 {[%emt 0:00:06]} Bc5 {[%emt 0:00:04]} 9. Nb3 {[%emt 0:00:49]} Bb6 {[%emt 0:00:06] D33: Tarrasch Defence: 6 g3 sidelines.} 10. O-O {[%emt 0:01:18]} d4 {[%emt 0:01:46]} 11. Na4 {[%emt 0:00:06]} O-O {[%emt 0:00:12]} 12. Bg5 {[%emt 0:01:03]} h6 {[%emt 0:00:17] seems to push 12...Re8 aside.} 13. Bxf6 {[%emt 0:00:05]} Qxf6 {[%emt 0:00:06]} 14. Nxb6 {[%emt 0:00:05]} axb6 {[%emt 0:00:05]} 15. Bxc6 {[%emt 0:00:07]} bxc6 {[%emt 0:00:11]} 16. Qxd4 {[%emt 0:00:05]} Qd8 {[%emt 0:07:54]} 17. Rfd1 {[%emt 0:07:26]} Qc7 {[%emt 0:03:54]} 18. Qd6 {[%emt 0:03:00]} Qb7 {[%emt 0:03:56]} 19. Nd4 $1 {[%emt 0:06:56]} c5 {[%emt 0:03:53]} 20. Nb5 {[%emt 0:00:25]} Bh3 $146 {[%emt 0:30:28] [#]} ({Predecessor:} 20... Be6 21. Nc7 Rfd8 22. Qxd8+ Rxd8 23. Rxd8+ Kh7 24. Nxe6 fxe6 25. Rd6 b5 26. f3 c4 {1-0 Capo Vidal,U (2306)-Garcia Almaguer,J (2208) Mexico City Latinoamericano-C 1st 2021 (5)}) 21. f3 $1 {[%emt 0:09:57]} Rae8 {[%emt 0:04:01]} 22. Kf2 {[%emt 0:01:20]} Qa6 {[%emt 0:10:21]} 23. Nc3 {[%emt 0:01:26]} Be6 {[%emt 0:01:00]} 24. Rd2 {[%emt 0:01:45]} Qa5 {[%emt 0:04:11]} 25. Rad1 {[%emt 0:03:24]} Rc8 {[%emt 0:03:42]} 26. a3 {[%emt 0:10:41]} b5 {[%emt 0:02:00]} 27. Nd5 {[%emt 0:01:36]} Bxd5 {[%emt 0:01:53]} 28. Rxd5 {[%emt 0:00:08]} b4 {[%emt 0:00:24]} 29. axb4 {[%emt 0:01:29]} Qxb4 {[%emt 0:00:08]} 30. R1d2 {[%emt 0:02:30]} Rfe8 {[%emt 0:02:09]} 31. Qf4 {[%emt 0:07:07]} c4 {[%emt 0:08:45]} 32. Rd7 {[%emt 0:06:36]} Qb6+ {[%emt 0:00:39]} 33. Kg2 {[%emt 0:04:35]} (33. Qd4 {simplifies} Qxd4+ 34. R7xd4 c3 35. bxc3 Rxc3 36. Rd5) 33... Qe6 {[%emt 0:00:24]} 34. Qd4 {[%emt 0:01:14]} Qe5 {[%emt 0:03:00]} 35. Qc3 {[%emt 0:00:54]} Qb5 {[%emt 0:01:33]} 36. R7d4 {[%emt 0:00:57]} Rc7 {[%emt 0:01:17]} 37. Rg4 {[%emt 0:00:55]} g6 {[%emt 0:00:46]} 38. Rgd4 {[%emt 0:00:11]} h5 {[%emt 0:00:24]} 39. Rd5 {[%emt 0:01:28]} Qb8 {[%emt 0:00:11]} (39... Rxe2+ $2 40. Rxe2 (40. Kf1 Rxd2 41. Rxb5 Rd1+ 42. Ke2 Rd8 $18) 40... Qb8 41. Qf6 $18) 40. e4 {[%emt 0:00:55]} Rb7 {[%emt 0:00:55]} 41. Rd6 {[%emt 0:32:19]} ({But not} 41. Qxc4 $6 Rxb2 42. Qc6 Rxd2+ 43. Rxd2 Rd8 $11) 41... Rc7 {[%emt 0:04:25]} 42. Qf6 {[%emt 0:00:00]} Rce7 {[%emt 0:03:23]} 43. R2d5 {[%emt 0:00:00]} Qb3 $2 {[%emt 0:03:52] [#]} (43... Qb7 $16 {is a better defense.} 44. Rd2 Qb8) 44. Kh3 $1 $18 {[%emt 0:00:00]} Qe3 {[%emt 0:02:26]} (44... h4 $142 45. gxh4 c3) 45. Rd7 $18 {[%emt 0:02:14]} ({Weaker is} 45. Rd8 Qa7 46. Qc6 Rxd8 47. Rxd8+ Kg7 $18) 45... Rxd7 {[%emt 0:00:45]} 46. Rxd7 {[%emt 0:00:04]} Rf8 {[%emt 0:00:05]} 47. Kh4 {[%emt 0:01:32]} Qh6 {[%emt 0:07:30]} 48. f4 {[%emt 0:01:06]} Qg7 {[%emt 0:00:46]} 49. e5 {[%emt 0:01:54]} Rb8 $2 {[%emt 0:03:35]} (49... Qxf6+ $18 50. exf6 Rc8) 50. Rd8+ {[%emt 0:03:45]} Rxd8 {[%emt 0:00:07]} 51. Qxd8+ {[%emt 0:00:03]} Kh7 {[%emt 0:00:06]} 52. h3 {[%emt 0:01:41]} Kh6 {[%emt 0:01:11]} 53. g4 {[%emt 0:01:13]} hxg4 {[%emt 0:00:06]} 54. hxg4 {[%emt 0:00:04]} Kh7 {[%emt 0:01:09]} 55. g5 {[%emt 0:00:58]} 1-0

[Event "Karel Janecek Open 2024"]
[Site "Prague"]
[Date "2024.03.06"]
[Round "8.7"]
[White "Stoyanov, Tsvetan"]
[Black "Mikes, Jan"]
[Result "1-0"]
[ECO "A18"]
[WhiteElo "2465"]
[BlackElo "2358"]
[Annotator "TA"]
[PlyCount "84"]
[EventDate "2024.02.22"]
[EventType "swiss"]
[EventCountry "CZE"]
[SourceTitle "playchess.com"]
[Source "ChessBase"]
[SourceQuality "1"]
[TimeControl "40/5400+30:1800+30"]

{[%evp 16,84,13,12,20,8,37,0,17,0,0,0,21,12,46,42,50,15,45,34,84,115,202,190,195,191,196,207,312,193,436,426,422,415,419,390,391,335,354,353,347,354,355,363,353,365,389,396,442,438,506,501,629,430,691,773,988,937,971,931,1711,1562,6211,6209,29973,29975,29975,29976,29977,29978,5705]} 1. c4 {[%emt 0:00:06]} Nf6 {[%emt 0:00:27]} 2. Nc3 {[%emt 0:00:14]} e6 {[%emt 0:01:44]} 3. e4 {[%emt 0:00:38]} d5 {[%emt 0:00:54]} 4. e5 {[%emt 0:00:19]} d4 {[%emt 0:00:13]} 5. exf6 {[%emt 0:00:05]} dxc3 {[%emt 0:00:06]} 6. bxc3 {[%emt 0:00:21]} Qxf6 {[%emt 0:00:10]} 7. Nf3 {[%emt 0:01:36]} b6 {[%emt 0:03:03]} 8. d4 {[%emt 0:01:49]} Bb7 {[%emt 0:00:47]} 9. Bd3 {[%emt 0:01:36]} h6 {[%emt 0:00:19] Against Bg5} 10. O-O {[%emt 0:00:45]} Nd7 {[%emt 0:01:12] Against Ne5} (10... Bxf3 {simplifies} 11. Qxf3 Qxf3 12. gxf3 Nd7) 11. Qe2 {[%emt 0:06:28]} Bd6 {[%emt 0:02:22] The position is equal.} 12. Nd2 {[%emt 0:14:10]} Qh4 {[%emt 0:08:43][%csl Gd6][%cal Rh4h2]} 13. g3 {[%emt 0:00:46]} Qe7 {[%emt 0:00:05]} 14. Rb1 {[%emt 0:11:33][%cal Oc4c5] c5! is the strong threat.} Ba3 {[%emt 0:07:45]} 15. Bxa3 {[%emt 0:06:05]} Qxa3 {[%emt 0:00:07] [#]} 16. c5 $1 {[%emt 0:00:10]} O-O {[%emt 0:11:54][%cal Ob7d5]} 17. Bb5 {[%emt 0:32:36] Threatens to win with Nc4.} c6 {[%emt 0:07:06]} ({Black should try} 17... Nb8 $14) 18. Bd3 $16 {[%emt 0:01:58] Hoping for Nc4. White now steadily converts the win.} Qxc3 {[%emt 0:09:36] [#]} (18... Nf6 $16) 19. Qe3 $1 $18 {[%emt 0:03:16]} Qa5 {[%emt 0:02:42][%cal Ob7a6]} (19... e5 $2 20. Bh7+ Kxh7 21. Qxc3 $18) 20. Nc4 {[%emt 0:01:15]} Qa4 {[%emt 0:01:12][%cal Ob7a6]} 21. Rb3 $40 {[%emt 0:01:25][%mdl 128] Ra3 would now be deadly. Black is in trouble.} (21. cxb6 axb6 22. Nxb6 Nxb6 23. Rxb6 Ba6 $14) 21... b5 {[%emt 0:08:19]} (21... Ba6 $142 22. Ra3 Qxc4) 22. Nd6 {[%emt 0:01:41][%cal Bc4d6,Bd6b7,Bb7a5][%mdl 32]} e5 $2 {[%emt 0:04:36]} (22... Rab8 {might work better.} 23. Ra3 Qxa3 24. Bh7+ Kxh7 25. Qxa3 Ba8 26. Qd3+ (26. Qxa7 Nf6 $18) 26... Kg8) 23. Nxb7 {[%emt 0:00:50]} ({Resist} 23. dxe5 Rae8 24. f4 (24. Nxb7 Rxe5 25. Qd2 Qa6 $18) 24... Bc8 $18) 23... Qxd4 {[%emt 0:01:22]} 24. Qxd4 {[%emt 0:01:49]} exd4 {[%emt 0:00:21]} 25. Be4 {[%emt 0:00:29]} Rac8 {[%emt 0:01:45]} 26. Bf5 {[%emt 0:01:13]} Rc7 {[%emt 0:00:07]} 27. Bxd7 {[%emt 0:00:04]} Rxd7 {[%emt 0:00:03]} 28. Na5 {[%emt 0:01:29]} Rc8 {[%emt 0:01:47]} 29. Rd3 {[%emt 0:00:20]} Rd5 {[%emt 0:00:22]} 30. Rc1 {[%emt 0:00:19]} Kf8 {[%emt 0:03:22]} 31. Nb3 {[%emt 0:00:09]} Rcd8 {[%emt 0:00:14]} 32. Rcd1 {[%emt 0:00:16]} a5 {[%emt 0:00:21][%cal Ba7a5,Ba5a4][%mdl 32]} 33. Rxd4 {[%emt 0:00:52]} a4 {[%emt 0:00:47]} 34. Rxd5 {[%emt 0:00:04]} Rxd5 {[%emt 0:00:03]} 35. Rxd5 {[%emt 0:00:25]} cxd5 {[%emt 0:00:09][%mdl 4096] Endgame. KN-KP} 36. Nd4 {[%emt 0:00:19]} b4 {[%emt 0:00:04]} 37. Kf1 {[%emt 0:00:20] And now Ke2 would win.} (37. Nc2 b3 38. axb3 axb3 $16) 37... g5 {[%emt 0:01:49][%cal Bg7g5,Bg5g4][%mdl 32]} 38. Ke2 {[%emt 0:00:11]} g4 {[%emt 0:00:13]} 39. Kd3 {[%emt 0:00:07] Intending Nc2 and mate.} Ke8 {[%emt 0:00:08]} 40. Nc2 {[%emt 0:00:16] White mates.} b3 {[%emt 0:00:04]} 41. axb3 {[%emt 0:30:04]} axb3 {[%emt 0:30:04]} 42. Nd4 {[%emt 0:00:08]} b2 {[%emt 0:00:04] Weighted Error Value: White=0.09 (flawless) /Black=0.61.  Mistake:       	---       	Black=4      Inaccurate:     	White=2     	Black=4      OK:         	White=13    	Black=5      Best:        	White=4     	Black=2      Strong:       	White=1     	---} 1-0

[Event "Karel Janecek Open 2024"]
[Site "Prague"]
[Date "2024.03.06"]
[Round "8.8"]
[White "Sofronie, Iulian"]
[Black "Isik, Alparslan"]
[Result "0-1"]
[ECO "A45"]
[WhiteElo "2422"]
[BlackElo "2452"]
[Annotator "RC"]
[PlyCount "70"]
[EventDate "2024.02.22"]
[EventType "swiss"]
[EventCountry "CZE"]
[SourceTitle "playchess.com"]
[Source "ChessBase"]
[SourceQuality "1"]
[TimeControl "40/5400+30:1800+30"]

1. d4 {[%emt 0:00:35]} Nf6 {[%emt 0:00:11]} 2. Bf4 {[%emt 0:00:07]} g6 {[%emt 0:00:21]} 3. Nc3 {[%emt 0:00:12]} d5 {[%emt 0:00:11]} 4. e3 {[%emt 0:00:11]} Bg7 {[%emt 0:00:07]} 5. h4 {[%emt 0:00:36]} h5 {[%emt 0:01:31]} 6. Nf3 {[%emt 0:00:15]} O-O {[%emt 0:00:30]} 7. Ne5 {[%emt 0:00:20]} c5 {[%emt 0:00:38]} 8. Qd2 {[%emt 0:03:51]} cxd4 {[%emt 0:00:20]} 9. exd4 {[%emt 0:00:05]} Nc6 {[%emt 0:00:09]} 10. Bb5 {[%emt 0:07:20]} Nxe5 {[%emt 0:01:09]} 11. Bxe5 {[%emt 0:06:58]} Bf5 {[%emt 0:06:06]} 12. f3 {[%emt 0:14:06]} Rc8 {[%emt 0:04:30]} 13. Ba4 {[%emt 0:01:35]} Qa5 {[%emt 0:04:50]} 14. Bb3 {[%emt 0:01:08]} Rfd8 {[%emt 0:00:57]} 15. O-O-O {[%emt 0:08:27]} Rc6 {[%emt 0:17:08]} 16. Rdg1 {[%emt 0:29:51]} Rdc8 {[%emt 0:12:49]} 17. g4 {[%emt 0:03:55]} hxg4 {[%emt 0:00:40]} 18. Bxf6 {[%emt 0:01:10]} Rxc3 {[%emt 0:13:01]} 19. bxc3 {[%emt 0:00:05]} Bxf6 {[%emt 0:01:06]} 20. fxg4 {[%emt 0:00:06]} Be4 {[%emt 0:01:00]} 21. Rh3 {[%emt 0:00:27]} Qa3+ {[%emt 0:10:20]} 22. Kb1 {[%emt 0:01:03]} b5 {[%emt 0:01:39]} 23. Re3 {[%emt 0:01:54]} a5 {[%emt 0:01:27]} 24. Rxe4 {[%emt 0:00:16]} dxe4 {[%emt 0:00:06]} 25. g5 {[%emt 0:05:43]} Bg7 {[%emt 0:08:05]} 26. Rf1 {[%emt 0:07:50]} e6 {[%emt 0:00:41]} 27. Qf4 {[%emt 0:00:33]} Qe7 {[%emt 0:01:58]} 28. a3 {[%emt 0:00:23]} a4 {[%emt 0:04:56]} 29. Ba2 {[%emt 0:00:02]} Rxc3 {[%emt 0:00:16]} 30. h5 {[%emt 0:00:35]} gxh5 {[%emt 0:02:12]} 31. g6 {[%emt 0:00:20]} fxg6 {[%emt 0:00:09]} 32. Qxe4 {[%emt 0:00:13]} Rxa3 {[%emt 0:03:30]} 33. Qxg6 {[%emt 0:03:13]} Re3 {[%emt 0:00:33]} 34. Rg1 {[%emt 0:02:31]} h4 {[%emt 0:01:59]} 35. Qh6 {[%emt 0:00:20]} Re1+ {[%emt 0:00:53]} 0-1

[Event "Karel Janecek Open 2024"]
[Site "Prague"]
[Date "2024.03.06"]
[Round "8.9"]
[White "Bernadskiy, Vitaliy"]
[Black "Harshavardhan G B"]
[Result "1/2-1/2"]
[ECO "C11"]
[WhiteElo "2566"]
[BlackElo "2392"]
[Annotator "TA"]
[PlyCount "65"]
[EventDate "2024.02.22"]
[EventType "swiss"]
[EventCountry "CZE"]
[SourceTitle "playchess.com"]
[Source "ChessBase"]
[SourceQuality "1"]
[TimeControl "40/5400+30:1800+30"]

{[%evp 20,65,6,14,19,26,11,28,15,34,25,20,12,17,30,37,37,34,47,57,58,33,29,31,38,0,0,0,0,7,2,8,77,60,67,6,6,2,2,-8,-7,-13,-14,-26,-26,-55,-15,-19]} 1. e4 {[%emt 0:00:28]} e6 {[%emt 0:00:25]} 2. d4 {[%emt 0:00:26]} d5 {[%emt 0:00:14]} 3. Nc3 {[%emt 0:01:09]} Nf6 {[%emt 0:00:13]} 4. e5 {[%emt 0:01:58]} Nfd7 {[%emt 0:00:12]} 5. f4 {[%emt 0:00:03]} c5 {[%emt 0:00:09]} 6. Nf3 {[%emt 0:00:02]} Nc6 {[%emt 0:00:09]} 7. Be3 {[%emt 0:00:05]} cxd4 {[%emt 0:00:07]} 8. Nxd4 {[%emt 0:00:06]} Qb6 {[%emt 0:00:07]} 9. Qd2 {[%emt 0:02:35]} Qxb2 {[%emt 0:00:10]} 10. Rb1 {[%emt 0:00:08]} Qa3 {[%emt 0:00:08]} 11. Bb5 {[%emt 0:01:07]} Nxd4 {[%emt 0:00:12]} 12. Bxd4 {[%emt 0:00:06] Hoping for Rb3.} a6 {[%emt 0:00:07]} 13. Bxd7+ {[%emt 0:00:49]} Bxd7 {[%emt 0:00:23] White has an edge.} 14. Rb3 {[%emt 0:00:22]} Qe7 {[%emt 0:00:08]} ({Wrong is} 14... Qa5 $2 15. Bb6 $18 (15. Rxb7 Bb4 $17) (15. Rxb7 Bb4 $17)) 15. Rxb7 {[%emt 0:00:04]} Qd8 {[%emt 0:00:12]} 16. O-O {[%emt 0:05:24]} Qc8 {[%emt 0:00:08]} 17. Rfb1 {[%emt 0:02:55]} Bc5 {[%emt 0:00:10] [#]} 18. f5 $1 {[%emt 0:01:33]} Bxd4+ {[%emt 0:04:33]} (18... Bb5 19. Nxb5) 19. Qxd4 {[%emt 0:01:35] And now Qb4 would win.} Bb5 {[%emt 0:00:07] Black is weak on the dark squares} 20. Rb6 {[%emt 0:07:24]} (20. Nxb5 {simplifies} axb5 21. R7xb5 O-O 22. R1b2) 20... O-O {[%emt 0:01:18]} 21. a4 {[%emt 0:00:54]} Qc4 {[%emt 0:01:09]} 22. Rd1 {[%emt 0:08:17]} (22. Nxb5 {simplifies} axb5 23. Qxc4 bxc4 24. fxe6 fxe6 25. Rxe6 Rxa4 26. Rd6) 22... Qxd4+ {[%emt 0:07:21]} 23. Rxd4 {[%emt 0:00:14]} Bc4 {[%emt 0:00:08]} 24. fxe6 {[%emt 0:02:25]} fxe6 {[%emt 0:00:17][%csl Gc4][%cal Rf8f1] [#]} 25. h4 {[%emt 0:00:13]} Rf5 {[%emt 0:11:21]} (25... Rfe8 $11) 26. Rxe6 $16 {[%emt 0:00:38]} Kf7 $1 {[%emt 0:00:08]} 27. Rb6 {[%emt 0:02:33] White is more active.} ({Better is} 27. Rd6 $14) 27... Rxe5 $11 {[%emt 0:01:00]} 28. Nd1 {[%emt 0:00:32]} Rae8 {[%emt 0:01:59]} 29. Rb7+ {[%emt 0:04:15]} R8e7 {[%emt 0:02:39]} 30. Rxe7+ {[%emt 0:01:02]} Rxe7 {[%emt 0:01:07]} 31. Nb2 {[%emt 0:00:29]} Ba2 {[%emt 0:01:07]} 32. Rf4+ {[%emt 0:03:38]} Ke8 {[%emt 0:00:42]} 33. Nd3 {[%emt 0:05:35] Weighted Error Value: White=0.13 (very precise) /Black=0.09 (flawless) .  Mistake:       	White=1     	Black=1      Inaccurate:     	White=2     	Black=1      OK:         	White=9     	Black=8      Best:        	White=1     	Black=2      Strong:       	---       	Black=1} 1/2-1/2

[Event "Karel Janecek Open 2024"]
[Site "Prague"]
[Date "2024.03.06"]
[Round "8.10"]
[White "Nguyen, Piotr"]
[Black "Sadzikowski, Daniel"]
[Result "1/2-1/2"]
[ECO "E20"]
[WhiteElo "2404"]
[BlackElo "2497"]
[Annotator "RC"]
[PlyCount "118"]
[EventDate "2024.02.22"]
[EventType "swiss"]
[EventCountry "CZE"]
[SourceTitle "playchess.com"]
[Source "ChessBase"]
[SourceQuality "1"]
[TimeControl "40/5400+30:1800+30"]

1. d4 {[%emt 0:00:22]} Nf6 {[%emt 0:00:18]} 2. c4 {[%emt 0:00:13]} e6 {[%emt 0:00:14]} 3. Nc3 {[%emt 0:00:20]} Bb4 {[%emt 0:00:09]} 4. f3 {[%emt 0:00:26]} c5 {[%emt 0:01:27]} 5. d5 {[%emt 0:00:12]} d6 {[%emt 0:00:25]} 6. e4 {[%emt 0:00:13]} b5 {[%emt 0:00:58]} 7. Nge2 {[%emt 0:01:13]} bxc4 {[%emt 0:00:20]} 8. Nf4 {[%emt 0:00:25]} e5 {[%emt 0:02:31]} 9. Nfe2 {[%emt 0:00:10]} Nbd7 {[%emt 0:04:04]} 10. Ng3 {[%emt 0:00:24]} Nb6 {[%emt 0:01:01]} 11. Be2 {[%emt 0:00:48]} Ng8 {[%emt 0:00:08]} 12. h4 {[%emt 0:00:53]} h6 {[%emt 0:17:29]} 13. f4 {[%emt 0:08:22]} exf4 {[%emt 0:28:25]} 14. Bxf4 {[%emt 0:02:03]} Bxc3+ {[%emt 0:06:05]} 15. bxc3 {[%emt 0:00:08]} Ne7 {[%emt 0:00:12]} 16. h5 {[%emt 0:05:48]} g5 {[%emt 0:03:07]} 17. hxg6 {[%emt 0:06:44]} Nxg6 {[%emt 0:00:04]} 18. Qd2 {[%emt 0:03:05]} Kd7 {[%emt 0:07:01]} 19. Rh5 {[%emt 0:18:49]} Kc7 {[%emt 0:08:34]} 20. e5 {[%emt 0:02:43]} dxe5 {[%emt 0:03:15]} 21. Rxe5 {[%emt 0:02:03]} Qh4 {[%emt 0:02:53]} 22. Re4+ {[%emt 0:27:48]} Nxf4 {[%emt 0:00:15]} 23. Qxf4+ {[%emt 0:00:03]} Qxf4 {[%emt 0:00:06]} 24. Rxf4 {[%emt 0:00:03]} f5 {[%emt 0:01:46]} 25. Bf3 {[%emt 0:00:41]} Kd6 {[%emt 0:01:25]} 26. Kf2 {[%emt 0:00:25]} Bd7 {[%emt 0:01:54]} 27. Rh1 {[%emt 0:00:39]} Raf8 {[%emt 0:03:19]} 28. Rfh4 {[%emt 0:02:07]} h5 {[%emt 0:03:18]} 29. Nxh5 {[%emt 0:02:14]} Na4 {[%emt 0:00:57]} 30. Rxc4 {[%emt 0:09:43]} Bb5 {[%emt 0:00:12]} 31. Rch4 {[%emt 0:00:05]} Nxc3 {[%emt 0:00:05]} 32. Nf4 {[%emt 0:00:10]} Rxh4 {[%emt 0:00:06]} 33. Rxh4 {[%emt 0:00:04]} Rf6 {[%emt 0:02:00]} 34. Rh7 {[%emt 0:02:31]} Ke5 {[%emt 0:01:05]} 35. Ke3 {[%emt 0:01:25]} Ra6 {[%emt 0:00:22]} 36. Re7+ {[%emt 0:02:08]} Kf6 {[%emt 0:00:16]} 37. Re6+ {[%emt 0:00:53]} Rxe6+ {[%emt 0:00:07]} 38. Nxe6 {[%emt 0:00:36]} Ke5 {[%emt 0:01:32]} 39. Nxc5 {[%emt 0:00:34]} Nxd5+ {[%emt 0:00:29]} 40. Kd2 {[%emt 0:01:27]} Bc4 {[%emt 0:01:23]} 41. a3 {[%emt 0:31:21]} Kf4 {[%emt 0:10:11]} 42. Ne6+ {[%emt 0:00:00]} Kg3 {[%emt 0:02:11]} 43. Ng7 {[%emt 0:00:00]} Ne7 {[%emt 0:04:46]} 44. Ke3 {[%emt 0:00:00]} Bf7 {[%emt 0:07:21]} 45. Kd4 {[%emt 0:00:00]} Kf4 {[%emt 0:00:10]} 46. Kc5 {[%emt 0:00:00]} Ng6 {[%emt 0:00:45]} 47. Kb5 {[%emt 0:00:00]} Nh4 {[%emt 0:01:47]} 48. Bc6 {[%emt 0:00:00]} Kg3 {[%emt 0:01:11]} 49. Ka6 {[%emt 0:00:00]} f4 {[%emt 0:00:39]} 50. Kxa7 {[%emt 0:00:00]} Nxg2 {[%emt 0:00:42]} 51. Nf5+ {[%emt 0:00:00]} Kf2 {[%emt 0:01:23]} 52. a4 {[%emt 0:00:00]} Ne3 {[%emt 0:00:04]} 53. Nd4 {[%emt 0:00:00]} Nc4 {[%emt 0:00:51]} 54. Ka6 {[%emt 0:00:00]} Nb2 {[%emt 0:00:19]} 55. a5 {[%emt 0:00:00]} Nc4 {[%emt 0:00:12]} 56. Kb5 {[%emt 0:00:00]} Nxa5 {[%emt 0:00:15]} 57. Kxa5 {[%emt 0:00:00]} Bh5 {[%emt 0:00:29]} 58. Kb4 {[%emt 0:00:00]} f3 {[%emt 0:00:19]} 59. Nxf3 {[%emt 0:00:00]} Bxf3 {[%emt 0:00:05]} 1/2-1/2

[Event "Karel Janecek Open 2024"]
[Site "Prague"]
[Date "2024.03.06"]
[Round "8.11"]
[White "Ivanov, Mike"]
[Black "Kraus, Tomas"]
[Result "1/2-1/2"]
[ECO "D02"]
[WhiteElo "2356"]
[BlackElo "2484"]
[Annotator "TA"]
[PlyCount "50"]
[EventDate "2024.02.22"]
[EventType "swiss"]
[EventCountry "CZE"]
[SourceTitle "playchess.com"]
[Source "ChessBase"]
[SourceQuality "1"]
[TimeControl "40/5400+30:1800+30"]

{[%evp 9,50,7,10,16,16,9,45,52,47,36,43,32,65,14,75,57,90,39,37,22,48,0,54,0,34,0,47,0,0,0,4,0,0,0,0,-16,19,7,0,0,0,0,10]} 1. Nf3 {[%emt 0:00:03]} d5 {[%emt 0:00:16]} 2. g3 {[%emt 0:00:23]} Nd7 {[%emt 0:01:12]} 3. d4 {[%emt 0:00:43]} b6 {[%emt 0:00:23]} 4. Bg2 {[%emt 0:06:32]} Bb7 {[%emt 0:00:06]} 5. O-O {[%emt 0:05:47]} Ngf6 {[%emt 0:02:20] [#]} 6. c4 $1 {[%emt 0:07:47]} dxc4 {[%emt 0:00:32]} 7. Na3 {[%emt 0:02:16]} g6 {[%emt 0:14:41]} 8. Nxc4 {[%emt 0:01:47] Weiß steht etwas besser.} Bg7 {[%emt 0:00:37]} 9. b4 {[%emt 0:10:29]} O-O {[%emt 0:04:17]} 10. Bb2 {[%emt 0:00:21]} Bd5 {[%emt 0:05:04]} 11. Qc2 {[%emt 0:01:44]} (11. Rc1 $14) 11... Qb8 {[%emt 0:08:11]} (11... c5 $1 $11) 12. Rac1 {[%emt 0:11:38]} (12. Nce5 {ist interessant.} Qb7 13. Rac1 Bh6 14. e3) 12... Be4 {[%emt 0:05:13]} 13. Qb3 {[%emt 0:06:18]} (13. Qc3 $16) 13... Qb7 {[%emt 0:01:42]} 14. Rfd1 {[%emt 0:01:36]} Bd5 {[%emt 0:06:47]} 15. Qc2 {[%emt 0:03:56]} (15. Ne1 $14) 15... Be4 {[%emt 0:00:27]} (15... Bh6 $11) 16. Qb3 {[%emt 0:00:12]} Bd5 {[%emt 0:00:05]} 17. Qc2 {[%emt 0:00:14]} Rfc8 {[%emt 0:00:05]} (17... Be4 $11 {ist überlegen.} 18. Qd2 Rfd8) 18. a4 {[%emt 0:07:57]} (18. Nce5 $14) 18... a5 {[%emt 0:05:01] Die Stellung ist ausgeglichen.} 19. bxa5 {[%emt 0:10:16]} bxa5 {[%emt 0:01:19]} 20. Ba3 {[%emt 0:05:06]} c5 {[%emt 0:20:18]} 21. Qd3 {[%emt 0:03:20]} cxd4 {[%emt 0:03:35]} 22. Qxd4 {[%emt 0:00:45]} Qb3 {[%emt 0:15:12]} 23. Nfd2 {[%emt 0:00:47]} Qb7 {[%emt 0:00:04]} 24. Nf3 {[%emt 0:00:05]} Qb3 {[%emt 0:00:28]} 25. Nfd2 {[%emt 0:00:37]} Qb7 {[%emt 0:00:05] Gewichteter Fehlerwert: Weiß=0.20 (präzise) /Schwarz=0.21 (präzise) .  Fehler:       	Weiß=4     	Schwarz=3     Ungenau:       	Weiß=1     	Schwarz=5     OK:         	Weiß=5     	Schwarz=5     Bester:       	---       	Schwarz=2} 1/2-1/2